bitfinex/quotes_ETHUSD_20240927
["timestamp","ask_amount","ask_price","bid_price","bid_amount"]
[1727435421202,1.2505313,2654.1,2653.6,2.55719553]
[1727435421203,1.2505313,2654.1,2653.8,3.76811]
[1727435421405,0.4519,2654.1,2653.8,7.53619]
[1727435421560,0.4519,2654.1,2653.9,3.768]
[1727435423109,0.4519,2654.1,2653.8,3.76808]
[1727435423264,0.4519,2654.1,2653.8,7.53617]
[1727435423892,0.4519,2654.1,2653.8,3.76808]
[1727435424273,0.4519,2654.1,2653.8,7.53619]
[1727435424486,0.4519,2654.1,2653.8,3.76808]
[1727435424685,0.4519,2654.1,2653.8,4.80301551]
[1727435424915,0.45935018,2654.1,2653.9,3.76796]
[1727435425614,0.45935018,2654.1,2653.8,1.03493551]
[1727435425789,0.45935018,2654.1,2653.8,4.80308551]
[1727435428413,0.45935018,2654.1,2653.5,0.55]
[1727435428623,4.22719018,2654.1,2653.6,3.7684]
[1727435428918,0.00745018,2653.9,2653.7,3.7682]
[1727435429124,0.00745018,2653.9,2653.8,3.76815]
[1727435429323,0.00745018,2653.9,2653.7,4.45303955]
[1727435431321,0.00745018,2653.9,2653.7,3.7682]
[1727435438002,0.00745018,2653.9,2653.7,7.53645]
[1727435438202,0.00745018,2653.9,2653.8,3.76818]
[1727435438407,0.00745018,2653.9,2653.8,5.52907553]
[1727435438721,0.00745018,2654.1,2653.8,5.60443099]
[1727435438909,0.00745018,2654.1,2653.9,4.3283831]
[1727435439943,0.00745018,2654.1,2653.9,0.5604431]
[1727435440285,0.00745018,2654.1,2653.8,3.76818]
[1727435440803,0.00745018,2654.1,2653.8,3.7681]
[1727435441338,0.00745018,2654.1,2653.7,3.76831]
[1727435442753,3.77521018,2654.1,2653.7,3.76831]
[1727435443244,3.77521018,2654.1,2653.6,6.29865553]
[1727435443245,0.00745018,2654.1,2653.6,6.29865553]
[1727435443608,3.77521018,2654.1,2653.6,10.06703553]
[1727435443924,3.77521018,2654.1,2653.3,3.0]
[1727435443925,3.768,2654.0,2653.3,3.0]
[1727435444145,4.22762018,2653.8,2653.3,6.76882]
[1727435444446,4.22762018,2653.8,2653.4,6.76872]
[1727435444447,0.00745018,2653.6,2653.4,6.76872]
[1727435447015,5.40750042,2653.5,2653.0,11.10921]
[1727435447216,0.00745018,2653.2,2653.0,7.53845]
[1727435447454,0.00745018,2653.2,2653.0,8.292295]
[1727435447787,0.00745018,2653.2,2653.1,3.76917]
[1727435448136,0.00745018,2653.3,2653.2,3.76903]
[1727435448819,0.79639839,2653.3,2653.2,3.76903]
[1727435449547,0.79639839,2653.3,2653.0,8.292285]
[1727435449751,0.79639839,2653.3,2653.0,4.523015]
[1727435450062,0.79639839,2653.3,2653.1,3.76913]
[1727435453449,0.79639839,2653.3,2653.1,4.77443405]
[1727435453966,0.79639839,2653.3,2653.1,3.76913]
[1727435460880,0.79639839,2653.3,2653.2,3.76903]
[1727435461113,0.00745018,2653.3,2653.2,3.76903]
[1727435461548,0.00745018,2653.3,2653.2,3.84440036]
[1727435461750,0.00745018,2653.3,2653.2,3.76903]
[1727435461954,0.00745018,2653.3,2653.2,4.78165855]
[1727435462275,0.78894821,2653.5,2653.3,3.76889]
[1727435464370,0.78894821,2653.4,2653.3,3.76889]
[1727435465243,0.78894821,2653.4,2653.3,4.69877155]
[1727435466080,0.78894821,2653.5,2653.3,4.69877155]
[1727435468695,0.78894821,2653.5,2653.2,3.76903]
[1727435468900,0.78894821,2653.5,2653.0,4.59642]
[1727435468901,1.24084821,2653.4,2653.0,4.59642]
[1727435469105,1.24829839,2653.4,2653.1,3.76916]
[1727435469595,1.24829839,2653.4,2653.2,3.76902]
[1727435469796,0.79639839,2653.4,2653.2,3.76902]
[1727435470098,1.57754014,2653.6,2653.5,3.7686]
[1727435470099,0.00745018,2653.6,2653.5,3.7686]
[1727435470343,0.78894821,2653.7,2653.6,4.31846]
[1727435470604,0.79639839,2653.8,2653.6,4.31846]
[1727435471990,0.79639839,2653.8,2653.7,3.76832]
[1727435472894,0.79639839,2653.8,2653.7,7.36411204]
[1727435473065,0.78894821,2653.8,2653.7,7.43947099]
[1727435473271,0.78894821,2653.9,2653.8,3.76818]
[1727435473673,0.78894821,2654.0,2653.7,7.36411204]
[1727435473966,0.78894821,2654.0,2653.9,3.76803]
[1727435474188,0.78894821,2654.0,2653.9,6.85252553]
[1727435474387,0.78894821,2654.1,2653.8,4.5595712]
[1727435474592,0.79639839,2654.1,2653.8,8.3277312]
[1727435474898,0.79639839,2654.1,2654.0,3.76789]
[1727435474899,0.79743492,2654.1,2654.0,3.76789]
[1727435475827,0.79743492,2654.1,2653.9,3.76793]
[1727435476123,0.79743492,2654.1,2654.0,4.59909]
[1727435476327,0.00745018,2654.1,2654.0,5.51493312]
[1727435479027,0.00745018,2654.1,2654.0,8.51493312]
[1727435479321,1.18693042,2654.4,2654.0,8.51493312]
[1727435479322,0.79743492,2654.4,2654.1,3.0]
[1727435479526,0.78998474,2654.3,2654.0,4.74704312]
[1727435479730,0.78998474,2654.3,2654.0,3.8312]
[1727435480089,0.78998474,2654.2,2654.0,3.0]
[1727435480405,0.78998474,2654.2,2654.0,6.76788]
[1727435480918,0.78998474,2654.2,2654.1,3.76775]
[1727435481086,0.78998474,2654.3,2654.1,5.52864553]
[1727435482995,0.78998474,2654.3,2654.0,7.56559]
[1727435483228,0.78998474,2654.3,2654.0,6.76789]
[1727435483815,0.78998474,2654.3,2654.1,3.76775]
[1727435484325,0.79743492,2654.4,2654.1,3.76775]
[1727435484529,0.78998474,2654.3,2654.1,3.76775]
[1727435484703,0.78998474,2654.3,2654.0,6.76789]
[1727435484901,0.78998474,2654.3,2654.0,8.15946867]
[1727435485397,0.78998474,2654.3,2654.0,8.15938867]
[1727435487111,2.02944014,2654.1,2653.8,3.76816]
[1727435487331,0.78922965,2653.9,2653.6,5.52921553]
[1727435487625,0.78926623,2653.9,2653.6,5.52921553]
[1727435488087,0.78926623,2654.0,2653.6,5.52921553]
[1727435488295,1.63574448,2654.1,2653.6,5.52921553]
[1727435488296,0.78926623,2653.9,2653.6,5.52921553]
[1727435488495,0.78926623,2653.9,2653.7,3.7683]
[1727435488935,0.78926623,2654.0,2653.6,5.52926553]
[1727435489103,0.78926623,2654.0,2653.7,3.76831]
[1727435489709,0.78926623,2653.9,2653.7,3.76831]
[1727435490229,0.78926623,2654.0,2653.6,6.29505553]
[1727435490431,0.78926623,2654.0,2653.6,6.29508553]
[1727435491716,0.4519,2653.8,2653.0,0.0072]
[1727435492029,0.78926623,2653.7,2653.3,3.76877]
[1727435492203,0.78926623,2653.7,2653.5,3.76859]
[1727435492718,0.78926623,2653.7,2653.3,3.76876]
[1727435492918,0.78926623,2653.7,2653.4,3.76871]
[1727435493445,0.78926623,2653.7,2653.3,4.62172555]
[1727435493730,0.78926623,2653.6,2653.4,3.76872]
[1727435493909,0.78926623,2653.7,2653.4,3.76872]
[1727435494311,0.78926623,2653.6,2653.4,3.76872]
[1727435494519,0.78926623,2653.7,2653.4,3.76872]
[1727435494839,0.78926623,2653.7,2653.4,4.60776455]
[1727435495341,0.78926623,2653.6,2653.4,4.60776455]
[1727435497045,0.78926623,2653.7,2653.4,4.60776455]
[1727435498209,0.78926623,2653.6,2653.5,1.09903856]
[1727435498634,1.63574448,2653.8,2653.5,1.09903856]
[1727435498635,0.78926623,2653.7,2653.5,4.86763856]
[1727435500051,0.78926623,2653.7,2653.5,1.09903856]
[1727435500249,0.78926623,2653.8,2653.7,3.76832]
[1727435500438,0.78926623,2653.9,2653.7,3.76832]
[1727435501236,0.78926623,2653.8,2653.7,3.76832]
[1727435501952,0.78926623,2653.9,2653.7,3.76832]
[1727435503353,0.78926623,2653.8,2653.7,3.76832]
[1727435503918,0.78926623,2653.8,2653.6,3.76846]
[1727435504119,0.78926623,2653.8,2653.6,4.40062955]
[1727435507231,0.78926623,2653.8,2653.6,4.40055955]
[1727435507429,0.78926623,2653.8,2653.7,3.76832]
[1727435508068,0.78926623,2653.8,2653.6,4.40055955]
[1727435509465,0.78926623,2653.8,2653.6,8.16892955]
[1727435509668,0.78926623,2653.8,2653.7,3.76832]
[1727435510370,0.78926623,2653.8,2653.6,4.40053955]
[1727435510562,0.78926623,2653.8,2653.7,3.76832]
[1727435510728,0.78926623,2653.8,2653.6,8.16891955]
[1727435511025,0.78926623,2653.8,2653.7,3.76832]
[1727435511222,0.78926623,2653.8,2653.6,4.40053955]
[1727435511676,0.78926623,2653.8,2653.7,3.76832]
[1727435513184,0.78926623,2653.8,2653.6,4.40053955]
[1727435513480,0.78926623,2653.7,2653.6,4.40053955]
[1727435513642,0.78926623,2653.7,2653.6,3.76837]
[1727435514874,0.78926623,2653.8,2653.7,3.76832]
[1727435515181,1.18384448,2653.8,2653.7,3.76832]
[1727435515692,1.18384448,2653.8,2653.6,3.76837]
[1727435515989,0.79053178,2653.7,2653.6,3.76837]
[1727435519400,0.79053178,2653.7,2653.4,3.76868]
[1727435519603,1.18384448,2653.7,2653.3,7.53752]
[1727435519901,0.79059908,2653.4,2653.3,6.76886]
[1727435521382,1.24249908,2653.5,2653.4,3.76874]
[1727435523070,0.79059908,2653.5,2653.4,3.76874]
[1727435524508,1.18384448,2653.6,2653.4,3.76874]
[1727435524715,0.79060339,2653.5,2653.4,3.76874]
[1727435525215,1.18384448,2653.6,2653.4,3.76874]
[1727435527514,1.18384448,2653.5,2653.3,3.0]
[1727435527677,0.79084934,2653.4,2653.3,6.76884]
[1727435527873,1.18384448,2653.5,2653.4,3.76874]
[1727435531278,1.57754014,2653.6,2653.4,7.53738]
[1727435531508,1.5824487,2653.6,2653.5,3.7686]
[1727435532179,2.42868358,2653.7,2653.4,3.76864]
[1727435532385,1.58276328,2653.5,2653.4,7.53732]
[1727435532592,1.58276328,2653.5,2653.4,3.76864]
[1727435537012,1.58276328,2653.6,2653.4,3.76864]
[1727435537219,1.58276328,2653.5,2653.4,3.76864]
[1727435537510,1.58276328,2653.6,2653.4,3.76864]
[1727435537823,1.58276328,2653.5,2653.4,3.76864]
[1727435541682,1.58276328,2653.6,2653.4,3.76864]
[1727435541885,1.58276328,2653.5,2653.4,3.76864]
[1727435543724,1.58276328,2653.6,2653.4,5.332891]
[1727435543895,1.18690478,2653.5,2653.4,5.332891]
[1727435545408,1.18690478,2653.5,2653.4,4.57914]
[1727435549996,1.18690478,2653.5,2653.4,5.12914]
[1727435550306,1.18690478,2653.7,2653.6,3.76846]
[1727435550511,1.18690478,2653.7,2653.6,4.658216]
[1727435550903,1.58276328,2653.8,2653.6,4.658216]
[1727435550904,1.58276328,2653.8,2653.7,3.76832]
[1727435554239,1.97823134,2653.9,2653.7,3.76832]
[1727435554442,1.97823134,2653.8,2653.5,7.53711]
[1727435554738,1.18705386,2653.6,2653.5,7.53711]
[1727435557346,1.18705386,2653.6,2653.5,3.76851]
[1727435557722,1.58273848,2653.6,2653.4,4.57913]
[1727435557938,1.18724873,2653.5,2653.4,4.57913]
[1727435558124,1.58273848,2653.6,2653.4,4.57913]
[1727435558456,1.18734373,2653.5,2653.4,4.57913]
[1727435559247,1.58273848,2653.6,2653.4,4.57913]
[1727435560063,1.58273848,2653.5,2653.4,4.57913]
[1727435560500,1.58273848,2653.6,2653.4,4.57913]
[1727435560751,1.58273848,2653.5,2653.4,4.57913]
[1727435561830,1.58273848,2653.6,2653.4,4.57913]
[1727435562149,1.58273848,2653.5,2653.4,4.57913]
[1727435562653,1.58273848,2653.5,2653.4,3.76863]
[1727435564155,1.58273848,2653.5,2653.3,3.76889]
[1727435564351,1.18780898,2653.4,2653.3,3.7688]
[1727435565236,1.58273848,2653.5,2653.3,3.7688]
[1727435565829,1.58273848,2653.4,2653.3,3.7688]
[1727435569233,1.58273848,2653.4,2653.3,4.69867255]
[1727435571843,1.58273848,2653.4,2653.3,5.48147255]
[1727435572284,1.58273848,2653.4,2653.3,4.5516]
[1727435572688,1.58273848,2653.5,2653.4,3.76874]
[1727435572857,1.97984909,2653.6,2653.4,3.76874]
[1727435573490,1.97984909,2653.5,2653.4,3.76874]
[1727435573691,1.97984909,2653.6,2653.4,3.76874]
[1727435573843,1.97984909,2653.5,2653.4,3.76874]
[1727435575091,1.97984909,2653.6,2653.4,3.76874]
[1727435575244,1.97984909,2653.5,2653.4,3.76874]
[1727435576391,1.97984909,2653.5,2653.3,3.76886]
[1727435576550,1.58377234,2653.4,2653.3,3.76886]
[1727435576941,1.58377234,2653.4,2653.2,3.76901]
[1727435577185,1.58377234,2653.3,2653.2,3.76902]
[1727435580951,1.18766695,2653.3,2653.2,7.34165453]
[1727435581261,1.18766695,2653.4,2653.3,3.76889]
[1727435581894,1.18766695,2653.4,2653.3,5.25686145]
[1727435582091,1.18766695,2653.5,2653.4,3.76874]
[1727435582297,1.97927048,2653.7,2653.5,3.7686]
[1727435582496,1.58339892,2653.6,2653.5,3.7686]
[1727435583888,1.58339892,2653.6,2653.5,4.574]
[1727435592203,1.58339892,2653.6,2653.3,4.56687]
[1727435592404,1.18756871,2653.4,2653.2,3.76893]
[1727435592699,1.18760239,2653.3,2653.0,3.7764]
[1727435592995,0.79175941,2653.1,2653.0,6.7764]
[1727435593415,0.79175941,2653.1,2653.0,7.34893149]
[1727435595485,0.79175941,2653.1,2653.0,6.7764]
[1727435596694,0.79170326,2653.1,2653.0,6.7764]
[1727435597031,1.18763912,2653.2,2653.0,6.7764]
[1727435597225,1.18763912,2653.1,2653.0,6.7764]
[1727435597383,1.18763912,2653.1,2653.0,3.7764]
[1727435599723,1.18763912,2653.1,2653.0,0.0072]
[1727435599884,1.18763912,2653.1,2653.0,3.77651]
[1727435602620,1.18749276,2653.1,2653.0,3.77651]
[1727435603030,1.58342495,2653.2,2653.1,3.76917]
[1727435603316,1.58339184,2653.2,2653.1,3.76917]
[1727435603520,1.58339184,2653.2,2653.0,3.77643]
[1727435603721,1.18742194,2653.1,2653.0,3.77651]
[1727435608985,1.18742194,2653.2,2653.1,3.76917]
[1727435609280,2.03529184,2653.3,2653.2,3.76903]
[1727435610668,0.4519,2653.3,2653.2,3.76903]
[1727435611072,2.43054035,2653.3,2653.2,3.76903]
[1727435611257,0.4519,2653.3,2653.2,3.76903]
[1727435611459,2.03469456,2653.3,2653.2,3.76903]
[1727435612796,2.03464291,2653.3,2653.2,3.76903]
[1727435613470,2.43595497,2653.3,2653.1,3.76915]
[1727435613873,1.58274291,2653.2,2653.1,3.76915]
[1727435614956,1.58274291,2653.2,2653.0,3.77649]
[1727435615163,1.18703264,2653.1,2653.0,3.77649]
[1727435615584,2.03464291,2653.3,2653.0,3.77649]
[1727435615774,1.18699646,2653.1,2653.0,3.77649]
[1727435616862,1.18699646,2653.2,2653.1,3.76917]
[1727435617067,1.58274291,2653.2,2653.1,3.76917]
[1727435618255,0.4519,2653.3,2653.2,3.76903]
[1727435618449,0.4519,2653.3,2653.1,3.76904]
[1727435618675,2.03453529,2653.3,2653.1,3.76904]
[1727435619064,1.58263529,2653.2,2653.1,3.76904]
[1727435619269,0.4519,2653.3,2653.1,3.76904]
[1727435619270,2.43037766,2653.3,2653.1,3.76904]
[1727435619472,1.58265707,2653.2,2653.1,3.76904]
[1727435620070,2.43037766,2653.3,2653.1,3.76904]
[1727435620270,1.5825968,2653.2,2653.1,3.76904]
[1727435620754,1.58255091,2653.2,2653.1,3.76904]
[1727435621392,1.58257639,2653.2,2653.1,3.76917]
[1727435621598,2.03447639,2653.3,2653.2,3.76903]
[1727435621891,2.03447639,2653.3,2653.0,3.77649]
[1727435622053,1.18683955,2653.1,2653.0,3.77649]
[1727435625077,1.18683955,2653.2,2653.1,3.76917]
[1727435625278,2.03435273,2653.3,2653.1,3.76911]
[1727435625511,1.58245273,2653.2,2653.1,3.76911]
[1727435625717,1.18673388,2653.2,2653.1,3.76911]
[1727435631481,1.58245273,2653.3,2653.1,3.76911]
[1727435632012,1.58245273,2653.3,2653.2,3.76903]
[1727435633224,1.9787676,2653.4,2653.1,3.76916]
[1727435633384,1.58302581,2653.2,2653.1,3.76916]
[1727435640001,1.98031205,2653.3,2653.2,3.76903]
[1727435640217,1.98776223,2653.3,2653.2,3.76903]
[1727435642016,0.00745018,2653.3,2653.2,5.854849]
[1727435642330,1.59190941,2653.5,2653.3,4.55089]
[1727435642511,1.1882675,2653.4,2653.3,7.45026198]
[1727435643543,0.79175519,2653.4,2653.3,7.45026198]
[1727435643957,0.79175519,2653.4,2653.3,8.00026198]
[1727435644738,0.79175519,2653.5,2653.4,3.76874]
[1727435646239,0.79175519,2653.5,2653.4,4.55074]
[1727435646416,0.79175519,2653.6,2653.4,4.62610669]
[1727435646619,0.79175519,2653.6,2653.5,5.52949553]
[1727435647427,1.6401675,2653.6,2653.3,3.76886]
[1727435647643,1.18670284,2653.5,2653.4,3.76874]
[1727435647825,1.58445923,2653.5,2653.4,3.76874]
[1727435648214,1.58445923,2653.6,2653.5,3.7686]
[1727435649402,1.58445923,2653.6,2653.4,3.76866]
[1727435649833,1.58445923,2653.5,2653.4,3.76866]
[1727435650035,1.58445923,2653.6,2653.4,3.76866]
[1727435650741,1.18658617,2653.5,2653.2,3.76893]
[1727435650943,1.18658617,2653.4,2653.3,3.76888]
[1727435651245,1.19403635,2653.4,2653.3,3.76888]
[1727435652315,0.00745018,2653.4,2653.3,4.77695055]
[1727435652532,0.7984883,2653.4,2653.3,4.77695055]
[1727435654658,0.00745018,2653.4,2653.3,7.33064608]
[1727435654811,0.00745018,2653.4,2653.3,10.95601667]
[1727435655154,0.79103812,2653.6,2653.5,0.7559]
[1727435655325,0.79103812,2653.7,2653.5,4.5245]
[1727435655521,0.7908746,2653.7,2653.6,3.76846]
[1727435656418,0.79832478,2653.8,2653.6,5.14766]
[1727435656635,0.79832478,2653.8,2653.7,6.77007108]
[1727435656636,0.7908746,2653.8,2653.7,6.77007108]
[1727435656838,0.7908746,2653.9,2653.7,7.59927108]
[1727435657044,0.7908746,2653.9,2653.8,3.76818]
[1727435657228,0.7908746,2653.9,2653.8,5.28177111]
[1727435660668,0.7908746,2654.0,2653.9,3.76803]
[1727435661317,0.79002252,2654.0,2653.9,3.76803]
[1727435662647,1.18658617,2654.0,2653.9,3.76803]
[1727435662852,1.19403635,2654.1,2653.9,3.76803]
[1727435663288,0.78984672,2654.0,2653.9,3.76803]
[1727435663488,1.19403635,2654.1,2653.9,3.76803]
[1727435665177,1.64593635,2654.1,2653.7,3.76822]
[1727435665492,0.00745018,2653.8,2653.7,3.76822]
[1727435666054,0.00745018,2653.8,2653.7,4.77864855]
[1727435669260,0.00745018,2653.8,2653.7,3.76822]
[1727435672198,0.78974438,2653.9,2653.7,3.76822]
[1727435672393,0.79719456,2654.0,2653.8,0.7755]
[1727435672605,0.78974438,2653.9,2653.8,4.54367]
[1727435672911,0.78974438,2653.9,2653.8,4.54368]
[1727435673116,0.78974438,2653.9,2653.8,3.76818]
[1727435674209,0.00745018,2654.0,2653.8,3.76818]
[1727435674210,0.79719456,2654.0,2653.8,3.76818]
[1727435674709,0.78974438,2653.9,2653.7,3.76829]
[1727435677685,0.78974438,2653.9,2653.8,3.76818]
[1727435680618,1.00377449,2654.0,2653.8,3.76818]
[1727435680815,0.4519,2653.9,2653.6,7.53677]
[1727435681024,0.4519,2653.9,2653.7,3.76831]
[1727435682996,0.4519,2653.9,2653.5,4.31853]
[1727435683597,0.00745018,2653.8,2653.6,3.76846]
[1727435684285,0.00745018,2653.8,2653.7,3.76832]
[1727435685330,0.00745018,2653.8,2653.5,3.76853]
[1727435685533,1.59190941,2653.8,2653.5,3.76853]
[1727435685730,0.00745018,2653.6,2653.5,3.76853]
[1727435688399,0.00745018,2653.6,2653.4,3.76873]
[1727435688637,0.00745018,2653.6,2653.4,7.5374]
[1727435689317,0.00745018,2653.6,2653.5,3.7686]
[1727435689519,0.45935018,2653.6,2653.5,3.7686]
[1727435689725,1.64607266,2653.6,2653.5,3.7686]
[1727435690039,1.64607266,2653.6,2653.4,7.53729]
[1727435690200,1.64607266,2653.6,2653.4,3.76862]
[1727435690615,0.7911537,2653.5,2653.4,6.76862]
[1727435691209,0.7911537,2653.5,2653.4,9.50916355]
[1727435691425,0.7911537,2653.5,2653.4,11.27005908]
[1727435691607,0.79860388,2653.6,2653.5,3.7686]
[1727435695811,0.79869243,2653.6,2653.5,3.7686]
[1727435696319,0.79124225,2653.6,2653.5,3.7686]
[1727435698406,1.18672248,2653.7,2653.6,3.76846]
[1727435698607,1.58445923,2653.7,2653.6,3.76846]
[1727435698825,1.59190941,2653.7,2653.6,3.76846]
[1727435701069,1.19493358,2653.7,2653.6,3.76846]
[1727435701529,1.1949316,2653.7,2653.6,3.76846]
[1727435701730,1.1949316,2653.7,2653.6,5.07592555]
[1727435702730,1.1949316,2653.7,2653.6,5.90352555]
[1727435705036,1.18748142,2653.7,2653.6,5.90352555]
[1727435711883,1.18748142,2653.7,2653.6,6.45352555]
[1727435712479,1.18748142,2653.7,2653.6,8.21442108]
[1727435712679,1.18748142,2653.8,2653.7,4.31832]
[1727435712876,1.18748142,2653.9,2653.8,4.31818]
[1727435713102,0.79164861,2653.9,2653.8,9.15442697]
[1727435713380,0.7916468,2654.0,2653.9,4.31803]
[1727435713604,1.18748142,2654.1,2654.0,5.12029]
[1727435714814,1.18748142,2654.1,2654.0,4.31789]
[1727435715505,1.1949316,2654.1,2654.0,4.31789]
[1727435715701,1.1949316,2654.1,2654.0,5.84270502]
[1727435716516,0.4519,2654.0,2653.8,8.35411466]
[1727435716680,1.18686419,2653.9,2653.8,5.35420466]
[1727435716883,1.19431437,2653.9,2653.8,3.76817]
[1727435717081,0.00745018,2653.9,2653.8,3.76817]
[1727435718955,1.19432626,2653.9,2653.8,3.76817]
[1727435719169,0.00745018,2653.9,2653.8,3.76817]
[1727435724071,1.59190941,2653.9,2653.8,3.76817]
[1727435724462,0.00745018,2653.9,2653.8,3.76817]
[1727435727816,1.19431896,2653.9,2653.8,3.76817]
[1727435728025,1.19434591,2653.9,2653.8,3.76817]
[1727435731540,0.00745018,2653.9,2653.8,3.76817]
[1727435731903,1.19433433,2653.9,2653.8,3.76817]
[1727435733603,1.19440599,2653.9,2653.8,3.76817]
[1727435733803,0.00745018,2653.9,2653.8,3.76817]
[1727435734711,1.19444623,2653.9,2653.8,3.76817]
[1727435734918,0.00745018,2653.9,2653.8,3.76817]
[1727435735395,1.19448444,2653.9,2653.8,3.76817]
[1727435735600,1.59190941,2653.9,2653.8,3.76817]
[1727435748540,0.00745018,2653.9,2653.8,3.76817]
[1727435749061,1.59084115,2653.9,2653.8,3.76817]
[1727435749262,1.59084115,2653.9,2653.8,4.60117]
[1727435750305,0.00745018,2653.9,2653.8,3.76818]
[1727435750600,1.59081742,2653.9,2653.8,3.76818]
[1727435761807,2.04271742,2653.9,2653.8,3.76818]
[1727435765412,0.45935018,2653.9,2653.8,3.76818]
[1727435769921,6.05780037,2653.9,2653.2,3.76893]
[1727435770218,0.00745018,2653.3,2653.2,3.769]
[1727435770419,0.25148039,2653.3,2653.2,3.769]
[1727435770581,0.00745018,2653.3,2653.2,3.769]
[1727435771486,1.19448607,2653.3,2653.2,3.769]
[1727435773192,1.98556747,2653.3,2653.2,3.769]
[1727435773393,1.98556747,2653.3,2653.2,4.5421]
[1727435773815,1.97811729,2653.3,2653.2,4.5421]
[1727435773993,1.97811729,2653.3,2653.2,6.28331455]
[1727435775625,1.98556747,2653.3,2653.2,6.28331455]
[1727435776714,1.19448607,2653.3,2653.2,6.28331455]
[1727435779515,1.18703589,2653.3,2653.2,9.83331455]
[1727435785566,1.18703589,2653.3,2653.2,36.19379755]
[1727435785741,1.18703589,2653.3,2653.2,35.62236255]
[1727435785942,2.07222689,2653.9,2653.8,8.08228]
[1727435787964,2.07222689,2653.9,2653.8,8.07169974]
[1727435788867,2.07222689,2653.9,2653.8,6.75759974]
[1727435796178,0.00480731,2654.1,2654.0,3.76789]
[1727435802381,0.00480731,2654.1,2654.0,3.84324411]
[1727435802548,0.00480731,2654.1,2654.0,5.15763007]
[1727435803244,0.00480731,2654.1,2654.0,5.08227596]
[1727435804359,0.00480731,2654.1,2654.0,3.76789]
[1727435806680,0.00480731,2654.1,2654.0,3.84323956]
[1727435806874,0.00480731,2654.1,2654.0,26.21930856]
[1727435807188,0.097696,2654.7,2654.1,3.55]
[1727435807395,0.097696,2654.7,2654.6,9.90073553]
[1727435809606,0.097696,2654.7,2654.6,7.58984]
[1727435809809,0.097696,2654.7,2654.6,9.35073553]
[1727435810010,0.097696,2654.7,2654.6,10.66252708]
[1727435810678,0.097696,2654.7,2654.6,8.62883155]
[1727435810906,0.097696,2654.7,2654.6,7.31704]
[1727435811405,0.4519,2654.6,2654.3,3.76737]
[1727435811603,0.4519,2654.6,2654.4,3.76729]
[1727435816411,0.4519,2654.6,2654.4,3.76723]
[1727435817708,0.4519,2654.6,2654.3,3.76744]
[1727435817890,0.4519,2654.6,2654.4,3.76723]
[1727435819677,0.4519,2654.6,2654.3,3.76744]
[1727435819891,0.4519,2654.6,2654.4,3.76732]
[1727435821321,0.4519,2654.6,2654.5,3.76718]
[1727435825192,0.10514618,2654.7,2654.6,4.31704]
[1727435825500,0.10514618,2654.7,2654.6,9.91003553]
[1727435825501,0.097696,2654.7,2654.6,9.91003553]
[1727435844145,0.097696,2654.7,2654.6,9.91723553]
[1727435844451,0.097696,2654.7,2654.6,11.36102198]
[1727435844958,0.097696,2654.7,2654.6,11.35382198]
[1727435845244,0.097696,2654.7,2654.6,11.36102198]
[1727435847329,0.097696,2654.7,2654.6,31.73706898]
[1727435848254,0.097696,2654.7,2654.6,29.69752998]
[1727435848551,0.097696,2654.7,2654.6,29.00762998]
[1727435853052,0.097696,2654.7,2654.6,29.13167754]
[1727435853758,0.00745018,2655.5,2655.4,3.76591]
[1727435853964,0.00745018,2655.5,2655.4,8.13891]
[1727435854172,0.00745018,2655.5,2655.4,9.50549355]
[1727435855286,0.78953447,2656.2,2656.1,7.31491]
[1727435855498,0.4519,2656.4,2655.8,5.52610553]
[1727435855786,1.24143447,2656.2,2655.8,7.53046]
[1727435855991,0.4519,2656.0,2655.6,5.52645553]
[1727435856278,0.4519,2656.0,2655.9,3.7652]
[1727435856450,0.4519,2656.0,2655.8,5.52614553]
[1727435856847,0.4519,2656.0,2655.9,3.7652]
[1727435861147,0.00745018,2656.1,2656.0,4.31506]
[1727435861400,0.4519,2656.2,2656.0,4.31506]
[1727435861401,0.4519,2656.2,2656.1,4.31491]
[1727435862283,0.00745018,2656.5,2656.1,11.19030262]
[1727435862494,0.4519,2656.6,2656.5,4.31435]
[1727435862495,0.45935018,2656.6,2656.5,4.31435]
[1727435862642,0.78953447,2657.0,2656.7,3.764]
[1727435862643,0.4519,2656.9,2656.7,3.764]
[1727435862850,0.4519,2656.9,2656.5,4.31432]
[1727435863145,0.00745018,2656.8,2656.5,4.31432]
[1727435863348,0.4519,2656.7,2656.6,3.76419]
[1727435863787,0.4519,2656.7,2656.5,3.76432]
[1727435863962,0.4519,2656.7,2656.6,3.7642]
[1727435864346,0.4519,2656.7,2656.5,3.76432]
[1727435864792,0.4519,2656.8,2656.7,3.76406]
[1727435866594,0.45935018,2656.8,2656.5,3.76432]
[1727435866887,0.45935018,2656.8,2656.6,3.76415]
[1727435867455,0.45935018,2656.8,2656.5,3.76432]
[1727435867655,0.45935018,2656.8,2656.2,0.7838]
[1727435867656,3.77140018,2656.8,2656.2,3.76475]
[1727435867960,0.45935018,2656.6,2656.2,3.76475]
[1727435868183,0.00745018,2656.4,2656.2,3.76475]
[1727435868382,0.4519,2656.3,2656.0,3.76501]
[1727435868652,0.00745018,2656.1,2656.0,3.76501]
[1727435868856,0.4519,2656.3,2656.0,7.52995]
[1727435869094,0.4519,2656.3,2656.1,3.76489]
[1727435870072,0.00745018,2656.4,2656.2,3.76465]
[1727435870277,0.00745018,2656.4,2656.2,7.52934]
[1727435870591,0.4519,2656.7,2656.2,7.52934]
[1727435870888,0.00745018,2656.6,2656.2,3.76465]
[1727435871078,0.00745018,2656.6,2656.2,7.5293]
[1727435871599,0.00745018,2656.6,2656.3,3.76452]
[1727435871897,0.00745018,2656.6,2656.2,3.76465]
[1727435873598,0.00745018,2656.4,2656.2,3.76465]
[1727435873803,0.4519,2656.3,2656.2,3.76465]
[1727435876903,0.4519,2656.3,2656.1,3.76491]
[1727435877064,0.00745018,2656.2,2656.1,3.0]
[1727435877400,0.45935018,2656.3,2656.1,3.0]
[1727435877562,0.45935018,2656.3,2656.0,3.0]
[1727435877765,0.00745018,2656.1,2656.0,6.76504]
[1727435878304,0.45935018,2656.3,2656.0,6.76504]
[1727435878465,0.00745018,2656.1,2656.0,6.76504]
[1727435878662,0.45935018,2656.3,2656.1,3.76488]
[1727435880462,0.00745018,2656.3,2656.2,4.31477]
[1727435880802,0.00745018,2656.3,2656.2,5.422735]
[1727435881009,0.00745018,2656.3,2656.2,4.31477]